fUST/lending_fUST_20240725
["ID","MTS","AMOUNT","RATE_DAILY","PERIOD"]
[333090809,1721857844686,-500.0,0.00013972,2]
[333090810,1721857844696,-500.0,0.00013972,2]
[333090812,1721857844705,-500.0,0.00013972,2]
[333090814,1721857844716,-500.0,0.00013972,2]
[333090816,1721857844725,-525.13,0.00013972,2]
[333090817,1721857844735,-500.0,0.00013972,2]
[333090818,1721857844745,-672.86,0.00013972,2]
[333090820,1721857844755,-352.08066253,0.00013972,2]
[333090821,1721857844764,-4517.3,0.00013972,2]
[333090822,1721857844774,-1676.56,0.00013972,2]
[333090823,1721857844784,-500.0,0.00013972,2]
[333090824,1721857844794,-1161.52,0.00013972,2]
[333090826,1721857844804,-500.0,0.00013972,2]
[333090828,1721857844814,-500.0,0.00013972,2]
[333090829,1721857844824,-9379.92,0.00013972,2]
[333090830,1721857844833,-500.0,0.00013972,2]
[333090831,1721857844843,-1303.67,0.00013972,2]
[333090832,1721857844852,-1467.02,0.00013972,2]
[333090833,1721857844862,-892.12,0.00013972,2]
[333090834,1721857844872,-2130.6,0.00013972,2]
[333090835,1721857844882,-680.7,0.00013972,2]
[333090836,1721857844891,-4368.15,0.00013972,2]
[333090837,1721857844902,-644.05,0.00013972,2]
[333090838,1721857844912,-2002.64,0.00013972,2]
[333090839,1721857844923,-535.034791,0.00013972,2]
[333090840,1721857844933,-151.0,0.00013972,2]
[333090841,1721857844942,-930.27,0.00013972,2]
[333090842,1721857844952,-535.034791,0.00013972,2]
[333090843,1721857844961,-791.69,0.00013972,2]
[333090844,1721857844971,-151.0,0.00013972,2]
[333090845,1721857844981,-626.21,0.00013972,2]
[333090846,1721857844990,-1740.97,0.00013972,2]
[333090847,1721857845000,-500.0,0.00013972,2]
[333090848,1721857845010,-500.0,0.00013972,2]
[333090849,1721857845020,-2609.71,0.00013972,2]
[333090850,1721857845029,-8601.4,0.00013972,2]
[333090851,1721857845039,-500.0,0.00013972,2]
[333090852,1721857845050,-619.83,0.00013972,2]
[333090853,1721857845060,-500.0,0.00013972,2]
[333090854,1721857845072,-563.86,0.00013972,2]
[333090855,1721857845082,-918.81,0.00013972,2]
[333090856,1721857845091,-500.0,0.00013972,2]
[333090857,1721857845101,-500.0,0.00013972,2]
[333090858,1721857845112,-500.0,0.00013972,2]
[333090859,1721857845122,-151.0,0.00013972,2]
[333090860,1721857845132,-4269.4,0.00013972,2]
[333090861,1721857845141,-890.15,0.00013972,2]
[333090862,1721857845152,-500.0,0.00013972,2]
[333090863,1721857845163,-1829.92,0.00013972,2]
[333090864,1721857845174,-1202.68,0.00013972,2]
[333090865,1721857845183,-500.0,0.00013972,2]
[333090866,1721857845193,-1497.79,0.00013972,2]
[333090867,1721857845203,-500.0,0.00013972,2]
[333090868,1721857845212,-500.0,0.00013972,2]
[333090869,1721857845222,-2413.6,0.00013972,2]
[333090870,1721857845232,-507.0263962,0.00013972,2]
[333090871,1721857845241,-2339.04,0.00013972,2]
[333090872,1721857845250,-500.0,0.00013972,2]
[333090873,1721857845259,-500.0,0.00013972,2]
[333090874,1721857845269,-677.57,0.00013972,2]
[333090875,1721857845279,-500.0,0.00013972,2]
[333090876,1721857845289,-151.0,0.00013972,2]
[333090877,1721857845299,-2567.09,0.00013972,2]
[333090878,1721857845308,-500.0,0.00013972,2]
[333090879,1721857845318,-500.0,0.00013972,2]
[333090880,1721857845327,-525.25,0.00013972,2]
[333090881,1721857845337,-1515.15,0.00013972,2]
[333090882,1721857845348,-9685.75,0.00013972,2]
[333090883,1721857845358,-500.0,0.00013972,2]
[333090884,1721857845367,-649.32103594,0.00013972,2]
[333090885,1721857845376,-780.12,0.00013972,2]
[333090886,1721857845385,-12682.41,0.00013972,2]
[333090887,1721857845395,-500.0,0.00013972,2]
[333090888,1721857845405,-151.0,0.00013972,2]
[333090889,1721857845414,-500.0,0.00013972,2]
[333090890,1721857845424,-268.396952,0.00013972,2]
[333090891,1721857845434,-4038.03,0.00013972,2]
[333090892,1721857845443,-151.0,0.00013972,2]
[333090893,1721857845453,-500.0,0.00013972,2]
[333090894,1721857845462,-500.0,0.00013972,2]
[333090895,1721857845471,-151.0,0.00013972,2]
[333090896,1721857845481,-1785.96,0.00013972,2]
[333090897,1721857845491,-6141.4,0.00013972,2]
[333090898,1721857845501,-649.24,0.00013972,2]
[333090899,1721857845511,-500.0,0.00013972,2]
[333090900,1721857845520,-4151.41,0.00013972,2]
[333090901,1721857845530,-575.14970985,0.00013972,2]
[333090902,1721857845540,-776.29,0.00013972,2]
[333090903,1721857845550,-2378.78,0.00013972,2]
[333090904,1721857845559,-500.0,0.00013972,2]
[333090905,1721857845569,-154.71377951,0.00014,2]
[333090906,1721857845579,-150.112233,0.000141,2]
[333090907,1721857845588,-5722.87763012,0.00014146,2]
[333090908,1721857845597,-150.0,0.00014156,2]
[333090909,1721857845607,-505.0,0.00014156,2]
[333090910,1721857845617,-1409.0,0.00014156,2]
[333090911,1721857845627,-150.112233,0.000142,2]
[333090912,1721857845637,-600.0,0.00014202,2]
[333090913,1721857845647,-5722.87763012,0.00014235,2]
[333090916,1721857845656,-6017.7,0.00014235,2]
[333090918,1721857845665,-17168.6328904,0.00014236,2]
[333090920,1721857845675,-6017.7,0.00014245,2]
[333090921,1721857845685,-6017.7,0.00014245,2]
[333090922,1721857845695,-6017.7,0.00014245,2]
[333090923,1721857845704,-6017.7,0.00014245,2]
[333090924,1721857845715,-6017.7,0.00014245,2]
[333090925,1721857845724,-6017.7055338,0.00014245,2]
[333090926,1721857845734,-22067.76626545,0.00014246,5]
[333090927,1721857845743,-1972.47,0.00014246,2]
[333090928,1721857845752,-500.0,0.00014246,2]
[333090929,1721857845762,-500.0,0.00014246,2]
[333090930,1721857845771,-700.18,0.00014246,2]
[333090931,1721857845781,-500.0,0.00014246,2]
[333090932,1721857845790,-500.0,0.00014246,2]
[333090933,1721857845800,-1227.73,0.00014246,2]
[333090934,1721857845810,-151.0,0.00014246,2]
[333090935,1721857845820,-500.0,0.00014246,2]
[333090936,1721857845830,-151.0,0.00014246,2]
[333090937,1721857845839,-1425.27,0.00014246,2]
[333090938,1721857845850,-534.43843418,0.00014246,2]
[333090939,1721857845859,-500.0,0.00014246,2]
[333090940,1721857845869,-901.16,0.00014246,2]
[333090941,1721857845879,-500.0,0.00014246,2]
[333090942,1721857845889,-500.0,0.00014246,2]
[333090943,1721857845898,-500.0,0.00014246,2]
[333090945,1721857845908,-500.0,0.00014246,2]
[333090946,1721857845919,-1596.77,0.00014246,2]
[333090947,1721857845930,-500.0,0.00014246,2]
[333090948,1721857845940,-500.0,0.00014246,2]
[333090949,1721857845949,-2140.14,0.00014246,2]
[333090950,1721857845959,-500.0,0.00014246,2]
[333090951,1721857845968,-500.0,0.00014246,2]
[333090952,1721857845978,-500.0,0.00014246,2]
[333090953,1721857845987,-152.041816,0.00014246,2]
[333090954,1721857845997,-500.0,0.00014246,2]
[333090955,1721857846006,-500.0,0.00014246,2]
[333090956,1721857846015,-500.0,0.00014246,2]
[333090957,1721857846026,-500.0,0.00014246,2]
[333090958,1721857846036,-508.97254975,0.00014246,2]
[333090959,1721857846046,-515.46,0.00014246,2]
[333090960,1721857846056,-397.65130446,0.00014246,2]
[333090961,1721857846066,-3189.42,0.00014246,2]
[333090962,1721857846080,-625.67,0.00014246,2]
[333090963,1721857846089,-2008.4,0.00014246,2]
[333090964,1721857846099,-151.0,0.00014246,2]
[333090965,1721857846108,-1182.82,0.00014246,2]
[333090966,1721857846119,-1274.66,0.00014246,2]
[333090967,1721857846129,-500.0,0.00014246,2]
[333090968,1721857846138,-152.125492,0.00014246,2]
[333090969,1721857846149,-702.95,0.00014246,2]
[333090970,1721857846159,-500.0,0.00014246,2]
[333090971,1721857846171,-500.0,0.00014246,2]
[333090972,1721857846180,-500.0,0.00014246,2]
[333090973,1721857846189,-151.0,0.00014246,2]
[333090974,1721857846198,-500.0,0.00014246,2]
[333090975,1721857846207,-500.0,0.00014246,2]
[333090976,1721857846217,-500.0,0.00014246,2]
[333090977,1721857846226,-1954.46,0.00014246,2]
[333090978,1721857846236,-500.0,0.00014246,2]
[333090979,1721857846245,-1167.61,0.00014246,2]
[333090980,1721857846255,-758.35,0.00014246,2]
[333090981,1721857846264,-500.0,0.00014246,2]
[333090982,1721857846274,-500.0,0.00014246,2]
[333090983,1721857846284,-500.0,0.00014246,2]
[333090984,1721857846293,-500.0,0.00014246,2]
[333090985,1721857846302,-790.91,0.00014246,2]
[333090986,1721857846311,-515.97,0.00014246,2]
[333090987,1721857846321,-1763.35,0.00014246,2]
[333090988,1721857846331,-500.0,0.00014246,2]
[333090989,1721857846341,-500.0,0.00014246,2]
[333090990,1721857846350,-500.0,0.00014246,2]
[333090991,1721857846360,-1310.39,0.00014246,2]
[333090992,1721857846369,-1727.86,0.00014246,2]
[333090993,1721857846379,-500.0,0.00014246,2]
[333090994,1721857846388,-500.0,0.00014246,2]
[333090995,1721857846521,-500.0,0.00014246,2]
[333090996,1721857846551,-751.9,0.00014246,2]
[333090997,1721857846562,-500.0,0.00014246,2]
[333090998,1721857846572,-500.0,0.00014246,2]
[333090999,1721857846581,-500.0,0.00014246,2]
[333091000,1721857846591,-713.63,0.00014246,2]
[333091001,1721857846601,-500.0,0.00014246,2]
[333091002,1721857846610,-500.0,0.00014246,2]
[333091003,1721857846620,-851.02,0.00014246,2]
[333091004,1721857846630,-500.0,0.00014246,2]
[333091005,1721857846640,-1760.22,0.00014246,2]
[333091006,1721857846649,-576.17,0.00014246,2]
[333091007,1721857846659,-500.0,0.00014246,2]
[333091008,1721857846670,-1209.78,0.00014246,2]
[333091009,1721857846679,-500.0,0.00014246,2]
[333091010,1721857846689,-623.27,0.00014246,2]
[333091011,1721857846699,-500.0,0.00014246,2]
[333091012,1721857846708,-500.0,0.00014246,2]
[333091013,1721857846718,-500.0,0.00014246,2]
[333091014,1721857846728,-550.72,0.00014246,2]
[333091015,1721857846738,-500.0,0.00014246,2]
[333091016,1721857846748,-1781.2,0.00014246,2]
[333091017,1721857846757,-500.0,0.00014246,2]
[333091018,1721857846767,-2206.24,0.00014246,2]
[333091019,1721857846777,-1245.45,0.00014246,2]
[333091020,1721857846787,-1120.76,0.00014246,2]
[333091021,1721857846796,-577.38,0.00014246,2]
[333091022,1721857846806,-500.0,0.00014246,2]
[333091023,1721857846815,-500.0,0.00014246,2]
[333091024,1721857846825,-1450.95,0.00014246,2]
[333091025,1721857846835,-151.0,0.00014246,2]
[333091026,1721857846844,-500.0,0.00014246,2]
[333091027,1721857846854,-151.0,0.00014246,2]
[333091028,1721857846863,-151.0,0.00014246,2]
[333091029,1721857846873,-727.42,0.00014246,2]
[333091030,1721857846882,-800.82,0.00014246,2]
[333091031,1721857846891,-500.0,0.00014246,2]
[333091032,1721857846901,-500.0,0.00014246,2]
[333091033,1721857846911,-500.0,0.00014246,2]
[333091034,1721857846920,-2022.28,0.00014246,2]
[333091035,1721857846930,-4823.81,0.00014246,2]
[333091036,1721857846940,-500.0,0.00014246,2]
[333091037,1721857846953,-1157.78,0.00014246,2]
[333091038,1721857846962,-1658.98,0.00014246,2]
[333091039,1721857846971,-518.12237967,0.00014246,2]
[333091040,1721857846981,-1802.77,0.00014246,2]
[333091041,1721857846990,-1174.69,0.00014246,2]
[333091042,1721857846999,-500.0,0.00014246,2]
[333091043,1721857847008,-151.0,0.00014246,2]
[333091044,1721857847017,-4212.18,0.00014246,2]
[333091045,1721857847026,-1149.23,0.00014246,2]
[333091046,1721857847037,-500.0,0.00014246,2]
[333091047,1721857847047,-2143.7,0.00014246,2]
[333091048,1721857847056,-500.0,0.00014246,2]
[333091049,1721857847068,-500.0,0.00014246,2]
[333091050,1721857847078,-500.0,0.00014246,2]
[333091051,1721857847088,-500.0,0.00014246,2]
[333091052,1721857847097,-525.13,0.00014246,2]
[333091053,1721857847107,-672.86,0.00014246,2]
[333091054,1721857847116,-4517.3,0.00014246,2]
[333091055,1721857847131,-1676.56,0.00014246,2]
[333091056,1721857847140,-500.0,0.00014246,2]
[333091057,1721857847151,-1161.52,0.00014246,2]
[333091058,1721857847162,-9379.92,0.00014246,2]
[333091059,1721857847173,-500.0,0.00014246,2]
[333091060,1721857847183,-1303.67,0.00014246,2]
[333091061,1721857847192,-1467.02,0.00014246,2]
[333091062,1721857847202,-892.12,0.00014246,2]
[333091063,1721857847212,-2130.6,0.00014246,2]
[333091064,1721857847221,-680.7,0.00014246,2]
[333091065,1721857847231,-4368.15,0.00014246,2]
[333091066,1721857847242,-644.05,0.00014246,2]
[333091067,1721857847251,-2002.64,0.00014246,2]
[333091068,1721857847262,-535.034791,0.00014246,2]
[333091069,1721857847272,-930.27,0.00014246,2]
[333091070,1721857847281,-535.034791,0.00014246,2]
[333091071,1721857847291,-791.69,0.00014246,2]
[333091072,1721857847301,-626.21,0.00014246,2]
[333091073,1721857847311,-1740.97,0.00014246,2]
[333091074,1721857847321,-500.0,0.00014246,2]
[333091075,1721857847331,-2609.71,0.00014246,2]
[333091076,1721857847341,-8601.4,0.00014246,2]
[333091077,1721857847351,-500.0,0.00014246,2]
[333091078,1721857847361,-619.83,0.00014246,2]
[333091079,1721857847370,-500.0,0.00014246,2]
[333091080,1721857847380,-563.86,0.00014246,2]
[333091081,1721857847390,-918.81,0.00014246,2]
[333091082,1721857847399,-500.0,0.00014246,2]
[333091083,1721857847409,-519.21743312,0.00014246,2]
[333091084,1721857847419,-500.0,0.00014246,2]
[333091085,1721857847429,-151.0,0.00014246,2]
[333091086,1721857847439,-4269.4,0.00014246,2]
[333091087,1721857847448,-890.15,0.00014246,2]
[333091088,1721857847458,-1829.92,0.00014246,2]
[333091089,1721857847467,-1202.68,0.00014246,2]
[333091090,1721857847477,-500.0,0.00014246,2]
[333091091,1721857847487,-1497.79,0.00014246,2]
[333091092,1721857847497,-500.0,0.00014246,2]
[333091093,1721857847506,-500.0,0.00014246,2]
[333091094,1721857847516,-2413.6,0.00014246,2]
[333091095,1721857847525,-2339.04,0.00014246,2]
[333091096,1721857847535,-500.0,0.00014246,2]
[333091097,1721857847544,-500.0,0.00014246,2]
[333091098,1721857847554,-677.57,0.00014246,2]
[333091099,1721857847563,-500.0,0.00014246,2]
[333091100,1721857847573,-151.0,0.00014246,2]
[333091101,1721857847583,-2567.09,0.00014246,2]
[333091102,1721857847593,-500.0,0.00014246,2]
[333091103,1721857847603,-500.0,0.00014246,2]
[333091104,1721857847612,-525.25,0.00014246,2]
[333091105,1721857847622,-1515.15,0.00014246,2]
[333091106,1721857847632,-9685.75,0.00014246,2]
[333091107,1721857847641,-500.0,0.00014246,2]
[333091108,1721857847651,-780.12,0.00014246,2]
[333091109,1721857847660,-12682.41,0.00014246,2]
[333091110,1721857847671,-500.0,0.00014246,2]
[333091111,1721857847681,-151.0,0.00014246,2]
[333091112,1721857847690,-500.0,0.00014246,2]
[333091113,1721857847700,-4038.03,0.00014246,2]
[333091114,1721857847710,-151.0,0.00014246,2]
[333091115,1721857847719,-500.0,0.00014246,2]
[333091116,1721857847729,-500.0,0.00014246,2]
[333091117,1721857847739,-1785.96,0.00014246,2]
[333091118,1721857847748,-6141.4,0.00014246,2]
[333091119,1721857847758,-649.24,0.00014246,2]
[333091120,1721857847768,-500.0,0.00014246,2]
[333091121,1721857847778,-4151.41,0.00014246,2]
[333091122,1721857847788,-776.29,0.00014246,2]
[333091123,1721857847797,-2378.78,0.00014246,2]
[333091124,1721857847807,-500.0,0.00014246,2]
[333091125,1721857847817,-750.0,0.00014247,2]
[333091126,1721857847826,-153.0,0.00014329,2]
[333091127,1721857847836,-293.9329269,0.00014329,2]
[333091128,1721857847846,-312.3204449,0.00014329,2]
[333091129,1721857847856,-206.6937542,0.00014329,2]
[333091130,1721857847866,-153.0,0.00014329,2]
[333091131,1721857847875,-2000.0,0.00014485,2]
[333091132,1721857847885,-2000.0,0.00014494,2]
[333091133,1721857847894,-2000.0,0.00014502,2]
[333091134,1721857847904,-151.0,0.0001451,2]
[333091135,1721857847914,-151.0,0.0001451,2]
[333091136,1721857847924,-151.0,0.0001451,2]
[333091137,1721857847934,-2000.0,0.00014511,2]
[333091138,1721857847944,-160.0,0.00014518,3]
[333091139,1721857847954,-2000.0,0.0001452,2]
[333091140,1721857847964,-1143.06505084,0.0001452,2]
[333091141,1721857847973,-1972.47,0.0001452,2]
[333091142,1721857847983,-158.020548,0.0001452,2]
[333091143,1721857847992,-500.0,0.0001452,2]
[333091144,1721857848002,-151.0,0.0001452,2]
[333091145,1721857848012,-151.0,0.0001452,2]
[333091146,1721857848021,-500.0,0.0001452,2]
[333091147,1721857848031,-700.18,0.0001452,2]
[333091148,1721857848040,-298.0033,0.0001452,2]
[333091149,1721857848050,-151.0,0.0001452,2]
[333091150,1721857848060,-500.0,0.0001452,2]
[333091151,1721857848070,-1227.73,0.0001452,2]
[333091152,1721857848084,-500.0,0.0001452,2]
[333091153,1721857848094,-151.0,0.0001452,2]
[333091154,1721857848103,-500.0,0.0001452,2]
[333091155,1721857848114,-151.0,0.0001452,2]
[333091156,1721857848124,-1425.27,0.0001452,2]
[333091157,1721857848134,-500.0,0.0001452,2]
[333091158,1721857848144,-901.16,0.0001452,2]
[333091159,1721857848154,-500.0,0.0001452,2]
[333091160,1721857848167,-500.0,0.0001452,2]
[333091161,1721857848179,-500.0,0.0001452,2]
[333091162,1721857848189,-500.0,0.0001452,2]
[333091163,1721857848200,-1596.77,0.0001452,2]
[333091164,1721857848210,-500.0,0.0001452,2]
[333091165,1721857848221,-500.0,0.0001452,2]
[333091166,1721857848231,-2140.14,0.0001452,2]
[333091167,1721857848240,-500.0,0.0001452,2]
[333091168,1721857848250,-500.0,0.0001452,2]
[333091169,1721857848261,-500.0,0.0001452,2]
[333091170,1721857848271,-500.0,0.0001452,2]
[333091171,1721857848280,-500.0,0.0001452,2]
[333091172,1721857848290,-500.0,0.0001452,2]
[333091173,1721857848300,-500.0,0.0001452,2]
[333091174,1721857848309,-515.46,0.0001452,2]
[333091176,1721857848319,-3189.42,0.0001452,2]
[333091178,1721857848330,-625.67,0.0001452,2]
[333091181,1721857848340,-2008.4,0.0001452,2]
[333091184,1721857848349,-1182.82,0.0001452,2]
[333091187,1721857848359,-1274.66,0.0001452,2]
[333091189,1721857848368,-702.95,0.0001452,2]
[333091191,1721857848378,-500.0,0.0001452,2]
[333091193,1721857848387,-213.91492781,0.0001452,2]
[333091195,1721857848397,-151.0,0.0001452,2]
[333091198,1721857848408,-500.0,0.0001452,2]
[333091200,1721857848418,-500.0,0.0001452,2]
[333091202,1721857848430,-500.0,0.0001452,2]
[333091203,1721857848439,-1954.46,0.0001452,2]
[333091206,1721857848449,-1167.61,0.0001452,2]
[333091207,1721857848459,-500.0,0.0001452,2]
[333091208,1721857848469,-758.35,0.0001452,2]
[333091213,1721857848479,-500.0,0.0001452,2]
[333091216,1721857848489,-500.0,0.0001452,2]
[333091219,1721857848499,-500.0,0.0001452,2]
[333091222,1721857848509,-790.91,0.0001452,2]
[333091225,1721857848520,-515.97,0.0001452,2]
[333091227,1721857848529,-1763.35,0.0001452,2]
[333091230,1721857848539,-500.0,0.0001452,2]
[333091232,1721857848549,-505.33364383,0.0001452,2]
[333091235,1721857848560,-500.0,0.0001452,2]
[333091238,1721857848569,-1310.39,0.0001452,2]
[333091240,1721857848579,-1727.86,0.0001452,2]
[333091243,1721857848589,-500.0,0.0001452,2]
[333091246,1721857848598,-500.0,0.0001452,2]
[333091249,1721857848608,-500.0,0.0001452,2]
[333091252,1721857848618,-751.9,0.0001452,2]
[333091255,1721857848628,-500.0,0.0001452,2]
[333091258,1721857848638,-500.0,0.0001452,2]
[333091261,1721857848647,-713.63,0.0001452,2]
[333091264,1721857848657,-500.0,0.0001452,2]
[333091267,1721857848667,-500.0,0.0001452,2]
[333091270,1721857848678,-851.02,0.0001452,2]
[333091271,1721857848688,-500.0,0.0001452,2]
[333091273,1721857848698,-1760.22,0.0001452,2]
[333091275,1721857848708,-576.17,0.0001452,2]
[333091279,1721857848718,-500.0,0.0001452,2]
[333091280,1721857848729,-1209.78,0.0001452,2]
[333091282,1721857848739,-500.0,0.0001452,2]
[333091284,1721857848749,-623.27,0.0001452,2]
[333091286,1721857848759,-500.0,0.0001452,2]
[333091287,1721857848769,-500.0,0.0001452,2]
[333091288,1721857848779,-500.0,0.0001452,2]
[333091290,1721857848788,-550.72,0.0001452,2]
[333091291,1721857848798,-1781.2,0.0001452,2]
[333091292,1721857848808,-500.0,0.0001452,2]
[333091293,1721857848817,-2206.24,0.0001452,2]
[333091294,1721857848827,-1245.45,0.0001452,2]
[333091295,1721857848837,-1120.76,0.0001452,2]
[333091296,1721857848847,-577.38,0.0001452,2]
[333091297,1721857848857,-500.0,0.0001452,2]
[333091299,1721857848866,-1450.95,0.0001452,2]
[333091300,1721857848876,-151.0,0.0001452,2]
[333091301,1721857848886,-500.0,0.0001452,2]
[333091302,1721857848896,-151.0,0.0001452,2]
[333091303,1721857848906,-263.270912,0.0001452,2]
[333091304,1721857848916,-727.42,0.0001452,2]
[333091305,1721857848927,-800.82,0.0001452,2]
[333091307,1721857848978,-500.0,0.0001452,2]
[333091308,1721857848988,-500.0,0.0001452,2]
[333091309,1721857848998,-2022.28,0.0001452,2]
[333091310,1721857849008,-4823.81,0.0001452,2]
[333091311,1721857849018,-500.0,0.0001452,2]
[333091312,1721857849029,-1157.78,0.0001452,2]
[333091313,1721857849039,-1658.98,0.0001452,2]
[333091314,1721857849049,-1802.77,0.0001452,2]
[333091315,1721857849059,-1174.69,0.0001452,2]
[333091316,1721857849070,-500.0,0.0001452,2]
[333091317,1721857849082,-151.0,0.0001452,2]
[333091318,1721857849092,-4212.18,0.0001452,2]
[333091319,1721857849103,-1149.23,0.0001452,2]
[333091320,1721857849113,-2143.7,0.0001452,2]
[333091321,1721857849123,-500.0,0.0001452,2]
[333091322,1721857849133,-500.0,0.0001452,2]
[333091323,1721857849143,-347.4279441,0.0001452,2]
[333091324,1721857849155,-525.13,0.0001452,2]
[333091325,1721857849165,-672.86,0.0001452,2]
[333091326,1721857849175,-4517.3,0.0001452,2]
[333091327,1721857849185,-1676.56,0.0001452,2]
[333091328,1721857849197,-500.0,0.0001452,2]
[333091329,1721857849208,-1161.52,0.0001452,2]
[333091330,1721857849218,-9379.92,0.0001452,2]
[333091331,1721857849228,-1303.67,0.0001452,2]
[333091332,1721857849238,-1467.02,0.0001452,2]
[333091333,1721857849248,-892.12,0.0001452,2]
[333091334,1721857849258,-2130.6,0.0001452,2]
[333091335,1721857849269,-680.7,0.0001452,2]
[333091336,1721857849279,-4368.15,0.0001452,2]
[333091337,1721857849289,-644.05,0.0001452,2]
[333091338,1721857849300,-2002.64,0.0001452,2]
[333091339,1721857849311,-535.034791,0.0001452,2]
[333091340,1721857849322,-535.034791,0.0001452,2]
[333091341,1721857849331,-930.27,0.0001452,2]
[333091342,1721857849342,-535.034791,0.0001452,2]
[333091343,1721857849352,-535.034791,0.0001452,2]
[333091344,1721857849363,-791.69,0.0001452,2]
[333091345,1721857849373,-626.21,0.0001452,2]
[333091346,1721857849383,-500.0,0.0001452,2]
[333091347,1721857849393,-1740.97,0.0001452,2]
[333091348,1721857849403,-2609.71,0.0001452,2]
[333091349,1721857849413,-8601.4,0.0001452,2]
[333091350,1721857849425,-500.0,0.0001452,2]
[333091351,1721857849436,-619.83,0.0001452,2]
[333091352,1721857849446,-500.0,0.0001452,2]
[333091353,1721857849457,-563.86,0.0001452,2]
[333091354,1721857849467,-918.81,0.0001452,2]
[333091355,1721857849477,-500.0,0.0001452,2]
[333091356,1721857849488,-500.0,0.0001452,2]
[333091357,1721857849499,-151.0,0.0001452,2]
[333091358,1721857849509,-151.0,0.0001452,2]
[333091359,1721857849519,-4269.4,0.0001452,2]
[333091360,1721857849530,-890.15,0.0001452,2]
[333091361,1721857849540,-1829.92,0.0001452,2]
[333091362,1721857849550,-1202.68,0.0001452,2]
[333091363,1721857849559,-500.0,0.0001452,2]
[333091364,1721857849569,-1497.79,0.0001452,2]
[333091365,1721857849578,-500.0,0.0001452,2]
[333091366,1721857849588,-500.0,0.0001452,2]
[333091367,1721857849598,-2413.6,0.0001452,2]
[333091368,1721857849608,-2339.04,0.0001452,2]
[333091369,1721857849617,-500.0,0.0001452,2]
[333091370,1721857849626,-500.0,0.0001452,2]
[333091371,1721857849635,-677.57,0.0001452,2]
[333091372,1721857849645,-2567.09,0.0001452,2]
[333091373,1721857849654,-151.0,0.0001452,2]
[333091374,1721857849664,-151.0,0.0001452,2]
[333091375,1721857849673,-500.0,0.0001452,2]
[333091376,1721857849683,-500.0,0.0001452,2]
[333091377,1721857849692,-525.25,0.0001452,2]
[333091378,1721857849702,-1515.15,0.0001452,2]
[333091379,1721857849713,-3670.23185536,0.0001452,2]
[333091380,1721857849882,-6015.51814464,0.0001452,2]
[333091381,1721857849893,-500.0,0.0001452,2]
[333091382,1721857849903,-780.12,0.0001452,2]
[333091383,1721857849914,-12682.41,0.0001452,2]
[333091384,1721857849926,-500.0,0.0001452,2]
[333091385,1721857849937,-151.0,0.0001452,2]
[333091386,1721857849946,-151.0,0.0001452,2]
[333091387,1721857849959,-500.0,0.0001452,2]
[333091388,1721857849969,-4038.03,0.0001452,2]
[333091389,1721857849978,-500.0,0.0001452,2]